[Event "POR Cup Teams 2017-18"]
[Site "Maia"]
[Date "2018.07.14"]
[Round "4"]
[White "Senlle Caride, Miguel"]
[Black "Gomes, Bruno Miguel De Sou"]
[Result "1/2-1/2"]
[ECO "B15"]
[WhiteElo "2318"]
[BlackElo "2286"]
[Annotator "NA"]
[PlyCount "56"]
[EventDate "2018.05.05"]
[EventType "team-tourn"]
[EventCountry "POR"]
[SourceTitle "playchess.com"]
[Source "ChessBase"]
[SourceQuality "1"]
[TimeControl "5400+30"]

1. e4 {[%emt 0:00:00]} c6 {[%emt 0:00:00]} 2. d4 {[%emt 0:00:00]} d5 {[%emt 0:00:00]} 3. Nd2 {[%emt 0:00:00]} dxe4 {[%emt 0:00:52]} 4. Nxe4 {[%emt 0:00:00]} Nf6 {[%emt 0:00:20]} 5. Nxf6+ {[%emt 0:01:04]} exf6 {[%emt 0:00:07]} 6. c3 {[%emt 0:04:46]} Bd6 {[%emt 0:00:18]} 7. Bd3 {[%emt 0:02:40]} O-O {[%emt 0:00:54]} 8. Ne2 {[%emt 0:00:08]} Qc7 {[%emt 0:01:40]} 9. h3 {[%emt 0:00:27]} Re8 {[%emt 0:05:12]} 10. O-O {[%emt 0:02:28]} Be6 {[%emt 0:08:38]} 11. c4 {[%emt 0:06:21]} Rd8 {[%emt 0:14:08]} 12. c5 {[%emt 0:30:42]} Bf8 {[%emt 0:03:14]} 13. Nf4 {[%emt 0:00:15]} Qd7 {[%emt 0:05:55]} 14. Qc2 {[%emt 0:11:11]} g6 {[%emt 0:03:43]} 15. Re1 {[%emt 0:16:03]} Bd5 {[%emt 0:05:46]} 16. Be3 {[%emt 0:02:38]} a5 {[%emt 0:01:42]} 17. b3 {[%emt 0:07:49]} Na6 {[%emt 0:03:24]} 18. Bc4 {[%emt 0:01:32]} Nc7 {[%emt 0:04:04]} 19. Rad1 {[%emt 0:00:23]} Bg7 {[%emt 0:04:41]} 20. Qc1 {[%emt 0:08:47]} Re8 {[%emt 0:04:23]} 21. Nxd5 {[%emt 0:01:07]} Nxd5 {[%emt 0:01:37]} 22. Bh6 {[%emt 0:01:16]} Qf5 {[%emt 0:06:23]} 23. Bxg7 {[%emt 0:00:09]} Kxg7 {[%emt 0:00:02]} 24. Rxe8 {[%emt 0:00:32]} Rxe8 {[%emt 0:00:18]} 25. Re1 {[%emt 0:00:03]} Rd8 {[%emt 0:07:11]} 26. Bxd5 {[%emt 0:00:11]} Rxd5 {[%emt 0:00:23]} 27. Qc3 {[%emt 0:00:32]} Qf4 {[%emt 0:01:20]} 28. Rd1 {[%emt 0:00:14]} Qc7 {[%emt 0:03:06]} 1/2-1/2

[Event "POR Cup Teams 2017-18"]
[Site "Maia"]
[Date "2018.07.14"]
[Round "4"]
[White "De Paiva, Pedro Henrique"]
[Black "Novais, Carlos Joao Fernand"]
[Result "1-0"]
[ECO "A01"]
[WhiteElo "2302"]
[BlackElo "2121"]
[Annotator "NA"]
[PlyCount "87"]
[EventDate "2018.05.05"]
[EventType "team-tourn"]
[EventCountry "POR"]
[SourceTitle "playchess.com"]
[Source "ChessBase"]
[SourceQuality "1"]
[TimeControl "5400+30"]

1. b3 {[%emt 0:00:00]} Nf6 {[%emt 0:02:08]} 2. Bb2 {[%emt 0:00:01]} e6 {[%emt 0:00:05]} 3. e3 {[%emt 0:00:36]} Be7 {[%emt 0:00:16]} 4. Nf3 {[%emt 0:01:23]} d5 {[%emt 0:03:25]} 5. c4 {[%emt 0:01:45]} O-O {[%emt 0:00:49]} 6. Be2 {[%emt 0:00:27]} c5 {[%emt 0:00:11]} 7. O-O {[%emt 0:01:13]} Nc6 {[%emt 0:00:10]} 8. d4 {[%emt 0:03:10]} dxc4 {[%emt 0:11:14]} 9. Bxc4 {[%emt 0:07:37]} a6 {[%emt 0:02:41]} 10. a3 {[%emt 0:04:18]} b5 {[%emt 0:02:30]} 11. Be2 {[%emt 0:01:30]} Bb7 {[%emt 0:00:12]} 12. dxc5 {[%emt 0:00:51]} Bxc5 {[%emt 0:00:09]} 13. Qxd8 {[%emt 0:03:14]} Rfxd8 {[%emt 0:00:09]} 14. Nbd2 {[%emt 0:01:45]} e5 {[%emt 0:21:53]} 15. Rfd1 {[%emt 0:10:56]} Re8 {[%emt 0:04:26]} 16. Rac1 {[%emt 0:02:08]} Bb6 {[%emt 0:00:18]} 17. Ng5 {[%emt 0:04:22]} Rad8 {[%emt 0:10:10]} 18. Bf3 {[%emt 0:03:46]} Na5 {[%emt 0:00:59]} 19. b4 {[%emt 0:01:51]} Bxf3 {[%emt 0:05:44]} 20. Ngxf3 {[%emt 0:00:44]} Nb7 {[%emt 0:01:09]} 21. Nxe5 {[%emt 0:01:13]} Nd5 {[%emt 0:04:57]} 22. Nf1 {[%emt 0:00:22]} f6 {[%emt 0:00:27]} 23. Nc6 {[%emt 0:03:15]} Rd6 {[%emt 0:00:16]} 24. Bd4 {[%emt 0:00:31]} Ree6 {[%emt 0:07:17]} 25. Bxb6 {[%emt 0:03:48]} Rxc6 {[%emt 0:00:05]} 26. Bd4 {[%emt 0:03:43]} Kf7 {[%emt 0:01:33]} 27. Nd2 {[%emt 0:01:30]} Ke8 {[%emt 0:01:37]} 28. Nb3 {[%emt 0:00:12]} Rxc1 {[%emt 0:00:14]} 29. Rxc1 {[%emt 0:00:05]} Kd7 {[%emt 0:00:10]} 30. Bc5 {[%emt 0:01:28]} Nc7 {[%emt 0:04:11]} 31. Rd1+ {[%emt 0:02:02]} Kc8 {[%emt 0:00:24]} 32. Bf8 {[%emt 0:03:49]} g6 {[%emt 0:00:08]} 33. Nd4 {[%emt 0:00:07]} Re8 {[%emt 0:00:50]} 34. Bg7 {[%emt 0:00:24]} f5 {[%emt 0:00:14]} 35. Rc1 {[%emt 0:00:17]} Kd7 {[%emt 0:00:33]} 36. Nf3 {[%emt 0:01:25]} Ne6 {[%emt 0:01:43]} 37. Bf6 {[%emt 0:00:09]} Rf8 {[%emt 0:01:39]} 38. Ne5+ {[%emt 0:10:50]} Kd6 {[%emt 0:00:15]} 39. Rd1+ {[%emt 0:00:05]} Kc7 {[%emt 0:00:06]} 40. Nd7 {[%emt 0:00:10]} Rf7 {[%emt 0:01:12]} 41. Be5+ {[%emt 0:00:08]} Kc6 {[%emt 0:00:33]} 42. Nf6 {[%emt 0:01:12]} Nf8 {[%emt 0:01:57]} 43. Rc1+ {[%emt 0:00:21]} Kb6 {[%emt 0:00:05]} 44. Bd4+ {[%emt 0:00:06]} 1-0

[Event "POR Cup Teams 2017-18"]
[Site "Maia"]
[Date "2018.07.14"]
[Round "4"]
[White "Diogo, Vasco"]
[Black "Ferreira, Paulo"]
[Result "1-0"]
[ECO "B28"]
[WhiteElo "2224"]
[BlackElo "2054"]
[Annotator "NA"]
[PlyCount "75"]
[EventDate "2018.05.05"]
[EventType "team-tourn"]
[EventCountry "POR"]
[SourceTitle "playchess.com"]
[Source "ChessBase"]
[SourceQuality "1"]
[TimeControl "5400+30"]

1. e4 {[%emt 0:00:00]} c5 {[%emt 0:00:00]} 2. Nf3 {[%emt 0:00:00]} a6 {[%emt 0:00:00]} 3. d4 {[%emt 0:00:46]} cxd4 {[%emt 0:00:00]} 4. Nxd4 {[%emt 0:00:06]} e5 {[%emt 0:00:08]} 5. Nf3 {[%emt 0:01:46]} Nf6 {[%emt 0:00:19]} 6. Bc4 {[%emt 0:01:39]} Be7 {[%emt 0:02:35]} 7. O-O {[%emt 0:01:33]} Nc6 {[%emt 0:00:42]} 8. Re1 {[%emt 0:05:01]} O-O {[%emt 0:00:30]} 9. Nc3 {[%emt 0:03:55]} d6 {[%emt 0:00:45]} 10. h3 {[%emt 0:02:23]} h6 {[%emt 0:05:09]} 11. a4 {[%emt 0:03:47]} Qc7 {[%emt 0:02:26]} 12. Qe2 {[%emt 0:01:56]} Nb4 {[%emt 0:05:27]} 13. Bb3 {[%emt 0:04:24]} b6 {[%emt 0:03:10]} 14. Be3 {[%emt 0:06:41]} Bb7 {[%emt 0:02:07]} 15. Nd2 {[%emt 0:05:16]} d5 {[%emt 0:04:26]} 16. exd5 {[%emt 0:02:26]} Nbxd5 {[%emt 0:02:09]} 17. Nxd5 {[%emt 0:01:58]} Nxd5 {[%emt 0:02:07]} 18. Nc4 {[%emt 0:06:05]} Bf6 {[%emt 0:02:20]} 19. a5 {[%emt 0:05:29]} b5 {[%emt 0:05:43]} 20. Nd2 {[%emt 0:04:25]} Nf4 {[%emt 0:02:53]} 21. Bxf4 {[%emt 0:01:40]} exf4 {[%emt 0:00:08]} 22. c3 {[%emt 0:00:31]} Qc6 {[%emt 0:01:55]} 23. Ne4 {[%emt 0:05:24]} Kh8 {[%emt 0:02:29]} 24. Rad1 {[%emt 0:04:26]} Rad8 {[%emt 0:02:58]} 25. Qh5 {[%emt 0:03:39]} Rxd1 {[%emt 0:05:26]} 26. Bxd1 {[%emt 0:02:56]} Bd8 {[%emt 0:03:51]} 27. Bf3 {[%emt 0:02:08]} Qe6 {[%emt 0:00:46]} 28. Re2 {[%emt 0:01:15]} Qa2 {[%emt 0:06:36]} 29. Kh2 {[%emt 0:08:08]} Qxa5 {[%emt 0:03:23]} 30. Nd6 {[%emt 0:04:25]} Bxf3 {[%emt 0:00:43]} 31. Nxf7+ {[%emt 0:01:57]} Kg8 {[%emt 0:08:46]} 32. Nxh6+ {[%emt 0:00:21]} Kh7 {[%emt 0:03:27]} 33. Ng4+ {[%emt 0:00:08]} Kg8 {[%emt 0:00:07]} 34. gxf3 {[%emt 0:00:44]} b4 {[%emt 0:01:46]} 35. Re5 {[%emt 0:01:03]} Qb6 {[%emt 0:00:40]} 36. cxb4 {[%emt 0:00:42]} Bf6 {[%emt 0:02:17]} 37. Qg6 {[%emt 0:03:00]} Qd4 {[%emt 0:01:26]} 38. Rh5 {[%emt 0:01:26]} 1-0

[Event "POR Cup Teams 2017-18"]
[Site "Maia"]
[Date "2018.07.14"]
[Round "4"]
[White "Dias, Ivo Rodrigues"]
[Black "Silva, Miguel Antonio Neto"]
[Result "0-1"]
[ECO "B35"]
[WhiteElo "2138"]
[BlackElo "2211"]
[Annotator "NA"]
[PlyCount "50"]
[EventDate "2018.05.05"]
[EventType "team-tourn"]
[EventCountry "POR"]
[SourceTitle "playchess.com"]
[Source "ChessBase"]
[SourceQuality "1"]
[TimeControl "5400+30"]

1. e4 {[%emt 0:00:00]} c5 {[%emt 0:00:10]} 2. Nc3 {[%emt 0:00:07]} Nc6 {[%emt 0:00:59]} 3. Nf3 {[%emt 0:03:50]} g6 {[%emt 0:03:56]} 4. d4 {[%emt 0:02:41]} cxd4 {[%emt 0:00:30]} 5. Nxd4 {[%emt 0:00:09]} Bg7 {[%emt 0:00:06]} 6. Be3 {[%emt 0:01:52]} Nf6 {[%emt 0:00:26]} 7. Bc4 {[%emt 0:01:30]} O-O {[%emt 0:04:14]} 8. Bb3 {[%emt 0:02:08]} d6 {[%emt 0:00:48]} 9. h3 {[%emt 0:01:09]} Bd7 {[%emt 0:00:23]} 10. O-O {[%emt 0:00:18]} Rc8 {[%emt 0:00:49]} 11. f4 {[%emt 0:07:33]} Nxd4 {[%emt 0:05:55]} 12. Bxd4 {[%emt 0:00:17]} Bc6 {[%emt 0:00:24]} 13. Qd3 {[%emt 0:06:53]} Qa5 {[%emt 0:04:24]} 14. e5 {[%emt 0:15:44]} dxe5 {[%emt 0:12:44]} 15. fxe5 {[%emt 0:02:27]} Nd5 {[%emt 0:00:22]} 16. e6 {[%emt 0:31:17]} fxe6 {[%emt 0:14:46]} 17. Bxg7 {[%emt 0:05:41]} Kxg7 {[%emt 0:00:16]} 18. Qd4+ {[%emt 0:02:07]} Nf6 {[%emt 0:02:18]} 19. Rae1 {[%emt 0:03:05]} Qg5 {[%emt 0:01:23]} 20. Ne4 {[%emt 0:05:43]} Qh4 {[%emt 0:04:33]} 21. g4 {[%emt 0:05:24]} Bxe4 {[%emt 0:02:08]} 22. Rxe4 {[%emt 0:00:10]} Qg3+ {[%emt 0:00:07]} 23. Kh1 {[%emt 0:00:05]} Qxh3+ {[%emt 0:00:08]} 24. Kg1 {[%emt 0:00:02]} Qg3+ {[%emt 0:00:07]} 25. Kh1 {[%emt 0:00:14]} Rcd8 {[%emt 0:00:47]} 0-1

[Event "POR Cup Teams 2017-18"]
[Site "Maia"]
[Date "2018.07.14"]
[Round "4"]
[White "Rodrigues, Jose A A"]
[Black "Luch, Michal"]
[Result "1/2-1/2"]
[ECO "E32"]
[WhiteElo "2101"]
[BlackElo "2396"]
[Annotator "NA"]
[PlyCount "26"]
[EventDate "2018.05.05"]
[EventType "team-tourn"]
[EventCountry "POR"]
[SourceTitle "playchess.com"]
[Source "ChessBase"]
[SourceQuality "1"]
[TimeControl "5400+30"]

1. d4 {[%emt 0:00:00]} Nf6 {[%emt 0:00:00]} 2. c4 {[%emt 0:00:00]} e6 {[%emt 0:00:00]} 3. Nc3 {[%emt 0:00:00]} Bb4 {[%emt 0:00:30]} 4. Qc2 {[%emt 0:00:10]} O-O {[%emt 0:00:41]} 5. Nf3 {[%emt 0:00:08]} b6 {[%emt 0:06:22]} 6. e4 {[%emt 0:04:22]} Bb7 {[%emt 0:05:51]} 7. Bd3 {[%emt 0:00:13]} d5 {[%emt 0:00:28]} 8. cxd5 {[%emt 0:00:56]} exd5 {[%emt 0:00:09]} 9. e5 {[%emt 0:00:16]} Ne4 {[%emt 0:00:49]} 10. O-O {[%emt 0:00:21]} Bxc3 {[%emt 0:15:29]} 11. bxc3 {[%emt 0:00:04]} c5 {[%emt 0:00:25]} 12. Nd2 {[%emt 0:03:42]} f5 {[%emt 0:14:33]} 13. f3 {[%emt 0:02:25]} Nxd2 {[%emt 0:05:12]} 1/2-1/2

[Event "POR Cup Teams 2017-18"]
[Site "Maia"]
[Date "2018.07.14"]
[Round "4"]
[White "Romano, Luis Miguel"]
[Black "Marques, Ricardo Taborda Tri"]
[Result "1/2-1/2"]
[ECO "C07"]
[WhiteElo "2083"]
[BlackElo "1876"]
[Annotator "NA"]
[PlyCount "70"]
[EventDate "2018.05.05"]
[EventType "team-tourn"]
[EventCountry "POR"]
[SourceTitle "playchess.com"]
[Source "ChessBase"]
[SourceQuality "1"]
[TimeControl "5400+30"]

1. e4 {[%emt 0:00:00]} e6 {[%emt 0:00:00]} 2. d4 {[%emt 0:00:00]} d5 {[%emt 0:00:00]} 3. Nd2 {[%emt 0:00:20]} c5 {[%emt 0:00:09]} 4. exd5 {[%emt 0:00:07]} Qxd5 {[%emt 0:00:20]} 5. Ngf3 {[%emt 0:00:06]} cxd4 {[%emt 0:00:16]} 6. Bc4 {[%emt 0:00:07]} Qd7 {[%emt 0:00:19]} 7. O-O {[%emt 0:01:03]} Nc6 {[%emt 0:01:04]} 8. Nb3 {[%emt 0:00:43]} a6 {[%emt 0:02:16]} 9. Nbxd4 {[%emt 0:00:24]} Nxd4 {[%emt 0:00:08]} 10. Nxd4 {[%emt 0:00:08]} Qc7 {[%emt 0:04:59]} 11. Bd3 {[%emt 0:06:14]} Nf6 {[%emt 0:02:17]} 12. Qf3 {[%emt 0:03:26]} Bd6 {[%emt 0:03:43]} 13. Kh1 {[%emt 0:02:02]} Bd7 {[%emt 0:01:01]} 14. Be3 {[%emt 0:03:11]} O-O-O {[%emt 0:08:47]} 15. Rfd1 {[%emt 0:13:40]} Kb8 {[%emt 0:03:16]} 16. c4 {[%emt 0:02:50]} e5 {[%emt 0:21:38]} 17. Nf5 {[%emt 0:01:53]} Bc6 {[%emt 0:06:02]} 18. Qg3 {[%emt 0:02:42]} Bf8 {[%emt 0:06:55]} 19. Bg5 {[%emt 0:15:41]} Re8 {[%emt 0:05:16]} 20. Bxf6 {[%emt 0:05:19]} gxf6 {[%emt 0:00:08]} 21. f3 {[%emt 0:00:23]} Bc5 {[%emt 0:02:32]} 22. Qh4 {[%emt 0:02:09]} Rhg8 {[%emt 0:06:21]} 23. Rab1 {[%emt 0:01:55]} a5 {[%emt 0:01:58]} 24. a3 {[%emt 0:02:03]} a4 {[%emt 0:00:13]} 25. Be4 {[%emt 0:00:29]} Rg5 {[%emt 0:05:52]} 26. b4 axb3 {[%emt 0:00:16]} 27. Rxb3 {[%emt 0:09:14]} Rxf5 {[%emt 0:03:13]} 28. Bxf5 {[%emt 0:00:30]} Ba4 {[%emt 0:00:13]} 29. Rdb1 {[%emt 0:05:57]} Bxb3 {[%emt 0:00:17]} 30. Rxb3 {[%emt 0:00:05]} Rd8 {[%emt 0:00:14]} 31. g3 {[%emt 0:02:33]} Rd1+ {[%emt 0:07:46]} 32. Kg2 {[%emt 0:00:40]} Rd2+ {[%emt 0:00:21]} 33. Kh1 {[%emt 0:13:58]} Rd1+ {[%emt 0:01:49]} 34. Kg2 {[%emt 0:00:05]} Rd2+ {[%emt 0:00:08]} 35. Kh1 {[%emt 0:00:16]} Rd1+ 1/2-1/2

[Event "POR Cup Teams 2017-18"]
[Site "Maia"]
[Date "2018.07.15"]
[Round "5"]
[White "Silva, Miguel Antonio Neto"]
[Black "Wegerle, Joerg"]
[Result "*"]
[ECO "D02"]
[WhiteElo "2211"]
[BlackElo "2411"]
[Annotator "NA RC"]
[PlyCount "135"]
[EventDate "2018.05.05"]
[EventType "team-tourn"]
[EventCountry "POR"]
[SourceTitle "playchess.com"]
[Source "ChessBase"]
[SourceQuality "1"]
[TimeControl "5400+30"]

1. d4 {[%emt 0:00:00]} d5 {[%emt 0:00:00]} 2. Nf3 {[%emt 0:00:44]} Nf6 {[%emt 0:00:15]} 3. c4 {[%emt 0:00:28]} e6 {[%emt 0:00:09]} 4. g3 {[%emt 0:01:41]} Bb4+ {[%emt 0:00:51]} 5. Bd2 {[%emt 0:01:42]} Be7 {[%emt 0:00:17]} 6. Bg2 {[%emt 0:00:51]} O-O {[%emt 0:00:33]} 7. O-O {[%emt 0:00:13]} Nbd7 {[%emt 0:00:36]} 8. Qc2 {[%emt 0:01:52]} c6 {[%emt 0:00:44]} 9. Rd1 {[%emt 0:02:08]} a5 {[%emt 0:02:01] E11: Bogo-Indian} (9... b6 10. b3 Ba6 11. a4 Qc8 12. Na3 c5 13. cxd5 Nxd5 14. Nc4 Bb7 15. dxc5 Nxc5 16. Rac1 Nf6 17. b4 Nce4 18. Be1 Qe8 19. Ng5 Nxg5 20. Bxb7 {1-0 (35) Matlakov,M (2704)-Zhou,J (2624) Qinhuangdao 2018}) 10. Bf4 {[%emt 0:01:51]} Nh5 {[%emt 0:01:04]} 11. Nc3 {[%emt 0:07:10]} f5 $146 {[%emt 0:09:38]} ({Predecessor:} 11... Nxf4 12. gxf4 f5 13. e3 Nf6 14. Kh1 Bd7 15. Ne5 Bd6 16. Rg1 Be8 17. Bf3 b5 {0-1 (40) Greet,A (2443)-Briscoe,C (2268) Torquay 2009}) 12. Qd2 {[%emt 0:07:43]} Nxf4 {[%emt 0:05:53]} 13. gxf4 {[%emt 0:02:35]} dxc4 {[%emt 0:01:40]} 14. a4 {[%emt 0:00:27]} Qc7 {[%emt 0:15:44]} 15. Rac1 {[%emt 0:05:16]} Bd6 {[%emt 0:06:35]} 16. e3 {[%emt 0:03:44]} Nb6 {[%emt 0:08:07]} 17. Qe2 {[%emt 0:02:42]} Bd7 {[%emt 0:02:53]} 18. Nd2 {[%emt 0:01:16]} Rf6 {[%emt 0:01:38]} 19. Nxc4 {[%emt 0:01:14]} Nxc4 {[%emt 0:01:12]} 20. Qxc4 {[%emt 0:00:08]} Qd8 {[%emt 0:00:19]} 21. Ne2 {[%emt 0:10:17]} Rh6 {[%emt 0:04:39]} 22. Ng3 {[%emt 0:01:33]} Kh8 {[%emt 0:00:54]} 23. Rc3 {[%emt 0:17:25]} Qh4 {[%emt 0:01:27]} 24. Kf1 {[%emt 0:10:30]} Qxh2 {[%emt 0:05:47]} 25. Bf3 {[%emt 0:00:32]} Qh4 {[%emt 0:04:00]} 26. Ke2 {[%emt 0:00:24]} Qe7 {[%emt 0:00:24]} 27. Qb3 {[%emt 0:02:18]} Be8 {[%emt 0:04:28]} 28. Rcc1 {[%emt 0:00:24]} Rd8 {[%emt 0:01:22]} 29. Rh1 {[%emt 0:01:29]} Rxh1 {[%emt 0:00:57]} 30. Rxh1 {[%emt 0:00:36]} Bb4 {[%emt 0:01:37]} 31. Qc2 {[%emt 0:01:13]} g6 {[%emt 0:05:14]} 32. Rd1 {[%emt 0:03:39]} Qf6 {[%emt 0:01:50]} 33. b3 {[%emt 0:00:49]} Bf7 {[%emt 0:01:04]} 34. Nf1 {[%emt 0:00:47]} g5 {[%emt 0:04:43]} 35. fxg5 {[%emt 0:00:59]} Qxg5 {[%emt 0:00:07]} 36. Nd2 {[%emt 0:01:06]} Bxd2 {[%emt 0:02:06]} 37. Qxd2 {[%emt 0:01:36]} Bh5 {[%emt 0:00:10]} 38. Bxh5 {[%emt 0:00:22]} Qxh5+ {[%emt 0:00:04]} 39. Kd3 {[%emt 0:00:12]} Qf3 {[%emt 0:02:39]} 40. Kc2 {[%emt 0:02:21]} Rg8 {[%emt 0:01:27]} 41. Qc3 {[%emt 0:00:43]} Qd5 {[%emt 0:00:31]} 42. Rd2 {[%emt 0:02:07]} Rg1 {[%emt 0:01:17]} 43. Rd1 {[%emt 0:00:15]} Rxd1 {[%emt 0:00:33]} 44. Kxd1 {[%emt 0:00:01]} h5 {[%emt 0:00:14]} 45. Ke2 {[%emt 0:00:48]} Kh7 {[%emt 0:00:32]} 46. f3 {[%emt 0:00:11]} Kg6 {[%emt 0:01:29]} 47. Qe1 {[%emt 0:00:17]} f4 {[%emt 0:00:24]} 48. exf4 {[%emt 0:02:09]} Qxd4 {[%emt 0:00:20]} 49. Qg3+ $17 {[%emt 0:00:15]} (49. Qxa5 $15 Qxf4 50. Qb6) 49... Kf7 {[%emt 0:00:16]} 50. Qg5 {[%emt 0:00:15]} Qb2+ {[%emt 0:01:29]} 51. Kf1 {[%emt 0:00:12]} Qb1+ {[%emt 0:00:03]} 52. Kf2 {[%emt 0:00:34]} Qc2+ {[%emt 0:00:14]} 53. Kf1 {[%emt 0:01:09]} Qf5 {[%emt 0:01:14]} 54. Qd8 {[%emt 0:00:08]} Qxf4 {[%emt 0:00:45]} 55. Qd7+ {[%emt 0:00:21]} Kf6 {[%emt 0:00:09]} 56. Qd8+ {[%emt 0:00:11]} Kf5 {[%emt 0:00:24]} 57. Qf8+ {[%emt 0:01:14]} Kg5 {[%emt 0:00:19]} 58. Qd8+ {[%emt 0:01:19]} Qf6 {[%emt 0:00:50]} 59. Qxa5+ {[%emt 0:01:46]} Kh4 {[%emt 0:01:12]} 60. Qe1+ {[%emt 0:01:33]} Kh3 {[%emt 0:00:40]} 61. Qe3 {[%emt 0:00:33]} Qa1+ {[%emt 0:00:35]} 62. Kf2 {[%emt 0:00:07]} Qb2+ {[%emt 0:00:22]} 63. Ke1 {[%emt 0:00:21]} Qb1+ {[%emt 0:00:13]} 64. Kf2 {[%emt 0:00:17]} Qc2+ {[%emt 0:00:21]} 65. Ke1 {[%emt 0:00:09]} Qf5 {[%emt 0:00:21]} 66. Kf2 {[%emt 0:01:19]} h4 {[%emt 0:02:17]} 67. Qc1 {[%emt 0:01:15]} Qe5 {[%emt 0:00:45]} 68. Qf1+ {[%emt 0:00:15]} *

[Event "POR Cup Teams 2017-18"]
[Site "Maia"]
[Date "2018.07.15"]
[Round "5"]
[White "Marques, Ricardo Taborda Tri"]
[Black "Diogo, Vasco"]
[Result "0-1"]
[ECO "A45"]
[WhiteElo "1876"]
[BlackElo "2224"]
[Annotator "NA"]
[PlyCount "68"]
[EventDate "2018.05.05"]
[EventType "team-tourn"]
[EventCountry "POR"]
[SourceTitle "playchess.com"]
[Source "ChessBase"]
[SourceQuality "1"]
[TimeControl "5400+30"]

1. d4 {[%emt 0:00:00]} Nf6 {[%emt 0:00:00]} 2. Bg5 {[%emt 0:00:00]} e6 {[%emt 0:01:31]} 3. e4 {[%emt 0:00:00]} h6 {[%emt 0:00:08]} 4. Bxf6 {[%emt 0:00:00]} Qxf6 {[%emt 0:00:06]} 5. Nf3 {[%emt 0:00:13]} d6 {[%emt 0:02:38]} 6. Nc3 {[%emt 0:03:21]} g5 {[%emt 0:05:05]} 7. e5 {[%emt 0:15:49]} Qe7 {[%emt 0:02:47] A46: 1 d4 Nf6 2 Nf3 e6: Torre, London and Colle Systems} 8. h3 {[%emt 0:11:01]} Bg7 {[%emt 0:01:30]} 9. Bb5+ $146 {[%emt 0:05:43]} ({Predecessor:} 9. Qe2 a6 10. O-O-O d5 11. Qe3 b5 12. Ne2 Nd7 13. Ng3 c5 14. Nh5 Rg8 15. Nxg7+ Rxg7 {1-0 (31) Chernyshov,K (2548)-Thorfinnsson,B (2328) Budapest 2005}) 9... Nd7 {[%emt 0:02:14]} 10. Qe2 {[%emt 0:01:48]} a6 {[%emt 0:05:44]} 11. Bxd7+ {[%emt 0:00:42]} Bxd7 {[%emt 0:01:04]} 12. O-O-O {[%emt 0:00:48]} d5 {[%emt 0:06:25]} 13. Kb1 {[%emt 0:04:40]} c5 {[%emt 0:09:53]} 14. dxc5 {[%emt 0:01:43]} Qxc5 {[%emt 0:00:20]} 15. Rhe1 {[%emt 0:05:40]} O-O-O {[%emt 0:02:59]} 16. Qe3 {[%emt 0:01:08]} Bf8 {[%emt 0:06:58]} 17. Nd4 {[%emt 0:01:45]} Be7 {[%emt 0:10:43]} 18. Rd3 {[%emt 0:03:53]} Kb8 {[%emt 0:00:17]} 19. Nce2 {[%emt 0:03:12]} Rc8 {[%emt 0:02:32]} {Besser ist} 20. Red1 $11 {[%emt 0:04:45]} Ba4 {[%emt 0:04:29]} 21. Nc3 {[%emt 0:01:13]} Bd7 {[%emt 0:01:01]} 22. Nb3 {[%emt 0:05:02]} Qxe3 {[%emt 0:02:16]} 23. Rxe3 {[%emt 0:00:34]} f5 $11 {[%emt 0:00:50]} 24. exf6 {[%emt 0:03:48]} Bxf6 {[%emt 0:00:09]} 25. Ne4 {[%emt 0:03:54]} Be7 {[%emt 0:01:10]} 26. Nc3 {[%emt 0:01:15]} Bd6 {[%emt 0:03:24]} 27. Red3 {[%emt 0:05:26]} Rhf8 {[%emt 0:03:17]} 28. f3 {[%emt 0:00:21]} Be5 {[%emt 0:07:37]} 29. Nxd5 {[%emt 0:03:40]} exd5 {[%emt 0:01:11]} 30. Rxd5 {[%emt 0:00:08]} Bf5 {[%emt 0:00:12]} 31. R1d2 {[%emt 0:02:37]} Bf4 {[%emt 0:00:35]} 32. Re2 {[%emt 0:00:18]} Rfe8 {[%emt 0:05:01]} 33. Rxe8 {[%emt 0:00:49]} Bxc2+ {[%emt 0:00:46]} 34. Ka1 {[%emt 0:00:12]} Rxe8 0-1